bitfinex/quotes_ETHUSD_20251215
["timestamp","ask_amount","ask_price","bid_price","bid_amount"]
[1765806174514,0.059378,3137.9,3137.8,32.30006355]
[1765806174711,0.059378,3137.9,3137.8,3.76742155]
[1765806174912,0.059378,3137.9,3137.6,0.506]
[1765806175246,0.059378,3137.9,3137.7,3.18702922]
[1765806177241,0.059378,3137.9,3137.6,0.506]
[1765806177544,0.059378,3137.9,3137.6,3.69312163]
[1765806177744,0.059378,3137.9,3137.6,0.506]
[1765806178645,3.18694626,3137.8,3137.6,0.506]
[1765806179141,3.24626232,3137.9,3137.6,0.506]
[1765806179349,0.6433069,3137.8,3137.6,0.506]
[1765806179722,3.8302946,3137.8,3137.4,0.001]
[1765806180013,0.6433069,3137.8,3137.4,0.58147529]
[1765806180241,3.24624882,3137.9,3137.4,0.001]
[1765806180648,6.43311964,3137.9,3137.4,0.001]
[1765806181438,6.37409566,3137.7,3137.4,0.001]
[1765806182246,3.18704783,3137.7,3137.4,0.001]
[1765806182636,6.37409566,3137.7,3137.4,0.001]
[1765806182947,0.67795997,3137.6,3137.4,0.001]
[1765806183648,3.86513592,3137.6,3137.4,0.001]
[1765806184555,3.18697192,3137.8,3137.4,0.001]
[1765806185237,6.37394384,3137.8,3137.4,0.001]
[1765806188557,0.059378,3137.9,3137.4,0.001]
[1765806188558,0.059378,3137.9,3137.5,0.97782103]
[1765806188761,0.059378,3137.9,3137.5,0.506]
[1765806189855,0.059378,3137.9,3137.6,15.564811]
[1765806190057,0.059378,3137.9,3137.7,3.18704783]
[1765806190558,0.059378,3137.9,3137.8,10.742968]
[1765806190957,0.059378,3137.9,3137.8,11.32344329]
[1765806191140,0.059378,3137.9,3137.8,27.75674329]
[1765806191537,0.508,3139.2,3137.8,27.75674329]
[1765806191538,0.002,3139.2,3137.8,26.27755029]
[1765806191737,0.002,3139.2,3139.1,27.463025]
[1765806192059,0.002,3139.2,3139.1,31.84063774]
[1765806192265,0.002,3139.2,3139.1,31.68602474]
[1765806192465,0.002,3139.2,3139.1,6.92745774]
[1765806192957,0.002,3139.2,3139.1,7.05494554]
[1765806193126,0.002,3139.2,3139.1,4.39958954]
[1765806193331,0.002,3139.2,3139.1,20.82701554]
[1765806193956,0.002,3139.2,3139.1,14.85741054]
[1765806194149,0.002,3139.2,3139.1,4.39958954]
[1765806194553,0.002,3139.2,3139.1,6.51677454]
[1765806195137,0.002,3139.2,3139.1,6.38928674]
[1765806197239,0.0012,3139.2,3139.1,6.38928674]
[1765806198066,0.0012,3139.2,3139.1,6.96082574]
[1765806200466,0.0012,3139.2,3139.1,3.18562645]
[1765806200634,0.0012,3139.2,3138.9,3.18574849]
[1765806200969,0.0012,3139.2,3138.8,0.506]
[1765806201265,0.0012,3139.2,3138.5,3.69216816]
[1765806201437,0.0012,3139.2,3138.5,0.506]
[1765806201963,0.0012,3139.2,3138.6,3.18604366]
[1765806202163,0.0012,3139.2,3138.6,18.094025]
[1765806202364,0.0012,3139.2,3138.6,6.37226788]
[1765806204470,0.0012,3139.2,3138.8,6.37186184]
[1765806204770,0.0012,3139.2,3138.9,0.506]
[1765806207661,0.0012,3139.2,3138.9,3.69182699]
[1765806209066,0.0012,3139.2,3138.8,3.1859092]
[1765806209067,0.0012,3139.2,3138.6,0.58047529]
[1765806210341,0.0012,3139.2,3138.5,3.18614076]
[1765806210543,0.0012,3139.2,3138.6,0.58047529]
[1765806211147,0.0012,3139.2,3138.1,1.08647529]
[1765806211471,0.0012,3139.2,3138.7,0.58047529]
[1765806211669,0.0012,3139.2,3138.5,3.76662926]
[1765806211895,0.0012,3139.2,3138.1,0.506]
[1765806212247,0.0012,3139.2,3138.4,3.18624353]
[1765806212445,0.0012,3139.2,3138.5,3.18617367]
[1765806212870,0.0012,3139.2,3138.6,3.18607383]
[1765806213075,0.406704,3139.2,3138.2,6.95355539]
[1765806213244,1.0846523,3139.2,3138.2,6.95355539]
[1765806213440,0.6791483,3139.2,3138.2,10.14009544]
[1765806213661,0.0012,3139.2,3138.2,10.14009544]
[1765806214044,0.0012,3139.2,3138.2,6.95355539]
[1765806214244,0.0012,3139.2,3138.2,10.14009544]
[1765806215284,0.0012,3139.2,3138.2,13.32663549]
[1765806215474,0.0012,3139.2,3138.5,25.96957]
[1765806215646,0.0012,3139.2,3138.7,25.96957]
[1765806216048,0.0012,3139.2,3138.7,25.650943]
[1765806216477,0.0012,3139.2,3138.6,0.506]
[1765806217073,0.0012,3139.2,3138.7,0.03186032]
[1765806217273,0.0012,3139.2,3138.9,0.58047529]
[1765806217579,0.0012,3139.2,3139.0,0.506]
[1765806219583,0.0012,3139.2,3139.1,3.18562645]
[1765806220659,0.0004,3139.2,3139.1,3.18562645]
[1765806220978,0.0004,3139.2,3139.0,0.506]
[1765806221346,0.0004,3139.2,3139.0,3.69170252]
[1765806222380,0.0004,3139.2,3139.0,0.506]
[1765806222586,0.0004,3139.2,3139.0,3.69168669]
[1765806222781,0.0004,3139.2,3139.0,0.506]
[1765806223088,0.0004,3139.2,3139.0,3.69170926]
[1765806223276,0.0004,3139.2,3139.0,0.506]
[1765806223474,0.0004,3139.2,3139.0,3.18569538]
[1765806224485,0.0004,3139.2,3138.8,6.37282799]
[1765806228179,0.0004,3139.2,3138.8,3.18689707]
[1765806228493,0.0004,3139.2,3138.8,6.37282799]
[1765806233388,0.0004,3139.2,3138.8,3.18689707]
[1765806234190,0.0004,3139.2,3138.8,6.37282799]
[1765806236463,0.0004,3139.2,3138.8,3.18689707]
[1765806236891,0.0004,3139.2,3138.8,6.37282799]
[1765806237700,0.0004,3139.2,3138.8,3.18689707]
[1765806238501,0.0004,3139.2,3138.8,6.37282799]
[1765806238868,0.0004,3139.2,3138.8,3.18689707]
[1765806240004,0.0004,3139.2,3138.8,6.37282799]
[1765806240974,0.0004,3139.2,3138.8,3.18689707]
[1765806241882,0.0004,3139.2,3138.8,0.001]
[1765806242703,0.405504,3139.1,3138.8,0.001]
[1765806242900,0.67769539,3139.0,3138.8,0.001]
[1765806243306,0.405504,3138.9,3138.8,0.001]
[1765806243804,0.404704,3138.9,3138.8,0.001]
[1765806244802,3.59053343,3138.9,3138.8,0.001]
[1765806245005,3.18582943,3138.9,3138.8,0.001]
[1765806245806,0.67769539,3139.0,3138.8,0.001]
[1765806245973,3.18595648,3139.2,3138.8,0.001]
[1765806246703,3.82329265,3139.2,3138.8,0.001]
[1765806246905,7.00887367,3139.2,3138.8,0.001]
[1765806248306,3.82329265,3139.2,3138.8,0.001]
[1765806248810,7.00887367,3139.2,3138.8,0.001]
[1765806250207,0.405504,3139.0,3138.8,0.001]
[1765806251079,6.37145586,3139.0,3138.8,0.001]
[1765806251301,0.68764559,3138.9,3138.8,0.001]
[1765806253086,3.59113045,3139.1,3138.8,0.001]
[1765806253286,6.7767569,3139.1,3138.8,0.001]
[1765806254715,6.3712529,3139.1,3138.8,0.001]
[1765806254899,0.405504,3139.0,3138.8,0.001]
[1765806255614,3.59133343,3138.9,3138.8,0.001]
[1765806255919,4.26904006,3138.9,3138.8,0.001]
[1765806258514,4.77404006,3138.9,3138.8,0.001]
[1765806259599,4.77604006,3138.9,3138.8,0.001]
[1765806266719,4.77704006,3138.9,3138.8,0.001]
[1765806266926,4.27104006,3138.9,3138.8,0.001]
[1765806267224,4.77704006,3138.9,3138.8,0.001]
[1765806267434,4.77624006,3138.9,3138.8,0.001]
[1765806267599,4.27024006,3138.9,3138.8,0.001]
[1765806267800,4.77624006,3138.9,3138.8,0.001]
[1765806271622,4.27024006,3138.9,3138.8,0.001]
[1765806271965,4.77624006,3138.9,3138.8,0.001]
[1765806274451,8.65755634,3138.9,3138.8,0.001]
[1765806274610,9.16355634,3138.9,3138.8,0.001]
[1765806274815,9.17941098,3138.9,3138.8,0.001]
[1765806275135,14.14720255,3138.9,3138.8,0.001]
[1765806275457,0.98597929,3138.8,3138.0,0.001]
[1765806275624,4.79282028,3138.1,3138.0,0.001]
[1765806275831,0.911504,3138.1,3138.0,0.001]
[1765806277262,4.09814559,3138.1,3138.0,0.001]
[1765806279023,8.48546187,3138.1,3138.0,0.001]
[1765806279271,3.18664159,3138.1,3138.0,0.001]
[1765806279559,0.12760697,3138.5,3138.0,0.001]
[1765806279560,0.506,3138.3,3138.0,0.001]
[1765806279929,3.18635073,3138.4,3138.0,0.001]
[1765806280122,0.405504,3138.3,3138.0,0.001]
[1765806281564,3.59194869,3138.3,3138.0,0.001]
[1765806282370,3.1863716,3138.4,3138.0,0.001]
[1765806282953,6.3727432,3138.4,3138.0,0.001]
[1765806283363,3.1863716,3138.4,3138.0,0.001]
[1765806284252,6.3727432,3138.4,3138.0,0.001]
[1765806284994,11.4479338,3138.4,3138.0,0.001]
[1765806286303,3.87424592,3138.4,3138.0,0.001]
[1765806286514,3.1863716,3138.4,3138.0,0.001]
[1765806286888,6.3727432,3138.4,3138.0,0.001]
[1765806287196,3.1863716,3138.4,3138.0,0.001]
[1765806288382,0.405504,3138.4,3138.0,0.001]
[1765806288588,0.506,3138.4,3138.0,0.001]
[1765806290150,3.69243627,3138.4,3138.0,0.001]
[1765806290478,3.69163627,3138.4,3138.0,0.001]
[1765806291194,3.18643627,3138.4,3138.0,0.001]
[1765806292257,3.87450344,3138.4,3138.0,0.001]
[1765806293795,0.405504,3138.3,3138.0,0.001]
[1765806294286,3.18654005,3138.2,3138.0,0.001]
[1765806294514,6.3730801,3138.2,3138.0,0.001]
[1765806295374,3.18654005,3138.2,3138.0,0.001]
[1765806296391,0.405504,3138.1,3138.0,0.001]
[1765806299101,3.59214559,3138.1,3138.0,0.001]
[1765806299386,0.405504,3138.1,3138.0,0.001]
[1765806300369,3.59214559,3138.1,3138.0,0.001]
[1765806300677,4.39064484,3138.6,3138.0,0.001]
[1765806300996,0.002,3138.4,3138.0,0.001]
[1765806304283,0.407504,3138.4,3138.0,0.001]
[1765806305207,0.405504,3138.2,3138.0,0.001]
[1765806305411,0.910504,3138.1,3138.0,0.001]
[1765806305762,4.09714559,3138.1,3138.0,0.001]
[1765806305970,5.70324341,3138.1,3138.0,0.001]
[1765806309374,6.2837187,3138.1,3138.0,0.001]
[1765806310811,5.19824341,3138.1,3138.0,0.001]
[1765806311007,0.002,3138.4,3138.0,0.001]
[1765806311207,3.18835612,3138.4,3138.0,0.001]
[1765806311588,0.407504,3138.4,3138.0,0.001]
[1765806311779,0.002,3138.4,3138.0,0.001]
[1765806313797,0.0012,3138.4,3138.0,0.001]
[1765806314571,0.0012,3138.4,3138.0,0.58147529]
[1765806315977,0.0012,3138.4,3138.2,0.58047529]
[1765806316301,0.0012,3138.4,3138.3,0.505]
[1765806316881,0.0012,3138.4,3138.0,3.1876844]
[1765806318113,0.0012,3138.4,3138.0,0.001]
[1765806318618,0.0012,3138.4,3138.0,3.1877206]
[1765806318991,0.0012,3138.4,3138.0,0.001]
[1765806324092,0.0012,3138.4,3138.0,0.58147529]
[1765806324953,0.0012,3138.4,3138.3,17.05759013]
[1765806325113,0.0012,3138.4,3138.3,4.2719138]
[1765806326344,0.0012,3138.4,3138.3,0.58047529]
[1765806326510,0.0012,3138.4,3138.0,0.001]
[1765806327120,0.0012,3138.4,3138.0,3.18766912]
[1765806327437,0.0012,3138.4,3138.2,17.207881]
[1765806327604,0.0012,3138.4,3138.2,0.58047529]
[1765806327800,0.0012,3138.4,3138.3,4.96912013]
[1765806329335,0.0012,3138.4,3138.3,8.15555864]
[1765806329539,0.0012,3138.4,3138.3,3.7669138]
[1765806330443,0.0012,3138.4,3138.3,4.2719138]
[1765806330615,0.0012,3138.4,3138.3,16.02052318]
[1765806330937,0.0012,3138.4,3138.3,12.9794628]
[1765806331437,0.0012,3138.4,3138.3,17.3649935]
[1765806331806,0.0012,3138.4,3138.3,28.2793645]
[1765806332732,0.0012,3138.4,3138.3,28.5186705]
[1765806333326,0.0012,3138.4,3138.3,15.3741268]
[1765806333537,0.0012,3138.4,3138.3,9.6783428]
[1765806333746,0.0012,3138.4,3138.3,34.2719138]
[1765806334041,0.0012,3138.4,3138.3,34.74776047]
[1765806334412,0.0012,3138.4,3138.3,34.2719138]
[1765806334932,0.0012,3138.4,3138.3,25.1463368]
[1765806335852,0.0012,3138.4,3138.3,34.2719138]
[1765806336938,0.0004,3138.4,3138.3,34.2719138]
[1765806337314,0.0004,3138.4,3138.3,34.28776844]
[1765806337515,0.0004,3138.4,3138.3,38.67329914]
[1765806337720,0.0004,3138.4,3138.3,34.28776844]
[1765806338544,0.0004,3138.4,3138.3,34.41527331]
[1765806338921,0.0004,3138.4,3138.3,38.80080401]
[1765806339115,0.0004,3138.4,3138.3,39.27665068]
[1765806339338,0.0004,3138.4,3138.3,39.71050462]
[1765806339761,0.0004,3138.4,3138.3,39.27665068]
[1765806340046,0.002,3139.4,3138.4,0.98597929]
[1765806340377,0.002,3139.4,3139.1,34.96600599]
[1765806340669,0.002,3139.4,3139.1,35.47100599]
[1765806340839,0.002,3139.4,3139.1,4.27110174]
[1765806342767,0.002,3139.4,3139.1,25.47806474]
[1765806343067,0.002,3139.4,3139.1,24.77173174]
[1765806343474,0.002,3139.4,3139.1,20.98364374]
[1765806343969,0.002,3139.4,3139.1,20.67507174]
[1765806344473,0.002,3139.4,3139.1,19.43757174]
[1765806344638,0.002,3139.4,3139.1,9.80504174]
[1765806345469,0.002,3139.4,3139.1,9.93253442]
[1765806345662,0.002,3139.4,3139.1,34.87444109]
[1765806345967,0.002,3139.4,3139.1,32.95070109]
[1765806346651,0.002,3139.4,3139.1,33.53224709]
[1765806347165,0.002,3139.4,3139.1,33.05640042]
[1765806347767,0.002,3139.4,3139.1,34.41444906]
[1765806348671,0.002,3139.4,3139.1,4.41444906]
[1765806348852,0.002,3139.4,3139.1,34.41444906]
[1765806350277,0.002,3139.4,3139.1,31.60397106]
[1765806350454,0.002,3139.4,3139.1,28.38997106]
[1765806350771,0.002,3139.4,3139.1,28.96479206]
[1765806351984,0.002,3139.4,3139.1,28.84479206]
[1765806352788,0.002,3139.4,3139.1,30.11704506]
[1765806353801,0.002,3139.4,3139.1,34.41444906]
[1765806354587,0.002,3139.4,3139.1,33.03889106]
[1765806354789,0.002,3139.4,3139.1,4.41444906]
[1765806354985,0.002,3139.4,3139.1,33.15084306]
[1765806355292,0.002,3139.4,3139.1,26.99486306]
[1765806355900,0.002,3139.4,3139.1,29.12759706]
[1765806356977,0.002,3139.4,3139.1,29.77003806]
[1765806357887,0.002,3139.4,3139.1,34.41444906]
[1765806360204,0.002,3140.2,3139.2,0.58047529]
[1765806360404,0.002,3140.2,3139.6,4.3855307]
[1765806360603,0.002,3140.2,3139.7,0.505]
[1765806361878,6.3692239,3140.1,3139.4,0.505]
[1765806362125,0.63912239,3139.9,3139.4,0.505]
[1765806363513,0.63912239,3139.9,3138.9,0.58147529]
[1765806363697,0.63912239,3139.9,3139.0,0.505]
[1765806365410,0.63912239,3139.9,3139.2,0.58047529]
[1765806365609,0.002,3139.9,3139.2,0.58047529]
[1765806367418,0.002,3139.9,3139.4,0.58047529]
[1765806367585,0.002,3139.9,3139.5,0.505]
[1765806369491,0.002,3139.9,3139.5,3.69019354]
[1765806369816,0.002,3139.9,3139.5,1.08547529]
[1765806370387,0.002,3139.9,3139.5,3.69021531]
[1765806370817,0.002,3139.9,3139.4,0.58047529]
[1765806371004,0.002,3139.9,3139.3,0.58047529]
[1765806371205,0.002,3139.9,3139.5,0.58047529]
[1765806371519,0.002,3139.9,3139.5,3.18521642]
[1765806373428,0.002,3139.9,3139.4,0.58047529]
[1765806373630,0.002,3139.9,3139.5,0.58047529]
[1765806373926,0.31867134,3139.8,3139.5,0.58047529]
[1765806374088,0.002,3139.9,3139.5,0.58047529]
[1765806374286,0.002,3139.9,3139.6,0.505]
[1765806375603,0.002,3139.9,3139.8,0.58047529]
[1765806376792,0.002,3139.9,3139.8,3.76539152]
[1765806376988,0.002,3139.9,3139.8,33.79724068]
[1765806377194,0.002,3139.9,3139.8,30.66971552]
[1765806378096,0.002,3139.9,3139.8,27.98264052]
[1765806379936,0.002,3139.9,3139.8,25.23261452]
[1765806380143,0.002,3139.9,3139.8,9.41271152]
[1765806380306,0.002,3139.9,3139.8,8.14471152]
[1765806383514,0.0012,3139.9,3139.8,8.14471152]
[1765806385060,0.0012,3139.9,3139.8,33.76539152]
[1765806385955,0.0012,3139.9,3139.8,3.76539152]
[1765806386255,0.0012,3139.9,3139.8,33.76539152]
[1765806387062,0.0012,3139.9,3139.8,3.76539152]
[1765806387230,0.0012,3139.9,3139.8,33.76539152]
[1765806392442,0.0012,3139.9,3139.8,3.76539152]
[1765806392621,0.0012,3139.9,3139.8,33.76539152]
[1765806393343,0.0012,3139.9,3139.8,11.842288]
[1765806393546,0.0012,3139.9,3139.8,15.250987]
[1765806394449,0.0012,3139.9,3139.8,13.609267]
[1765806394624,0.0012,3139.9,3139.8,15.701539]
[1765806395551,0.0012,3139.9,3139.8,15.679953]
[1765806395969,0.0012,3139.9,3139.8,3.76539152]
[1765806400154,0.0012,3139.9,3139.6,0.506]
[1765806400473,0.0012,3139.9,3139.8,0.58047529]
[1765806400759,0.0012,3139.9,3139.8,3.76539152]
[1765806402459,0.0012,3139.9,3139.7,0.58047529]
[1765806402959,0.0012,3139.9,3139.8,3.76539152]
[1765806403964,0.0012,3139.9,3139.8,0.58047529]
[1765806404463,0.0012,3139.9,3139.6,0.506]
[1765806406767,0.0004,3139.9,3139.6,0.506]
[1765806407743,0.0004,3139.9,3139.6,3.69111802]
[1765806410984,0.0004,3139.9,3139.6,0.506]
[1765806413669,0.0004,3139.9,3139.6,3.69111117]
[1765806414780,0.0004,3139.9,3139.6,6.87623029]
[1765806415354,0.0004,3139.9,3139.7,0.03185017]
[1765806415586,0.0004,3139.9,3139.7,0.58047529]
[1765806416688,0.0004,3139.9,3139.6,6.87623029]
[1765806416689,1.3,3139.8,3139.6,0.001]
[1765806416849,4.78683548,3139.7,3139.6,0.001]
[1765806417056,5.11689892,3139.7,3139.6,0.001]
[1765806417254,2.51114712,3139.7,3139.6,0.001]
[1765806417455,5.69616479,3139.7,3139.6,0.001]
[1765806418275,6.57791428,3139.7,3139.6,0.001]
[1765806421385,4.58261964,3139.7,3139.6,0.001]
[1765806421687,0.505,3139.7,3139.6,0.001]
[1765806421863,6.37022652,3139.9,3139.6,0.001]
[1765806422063,0.505,3139.8,3139.6,0.001]
[1765806422899,3.18531326,3139.9,3139.6,0.001]
[1765806423389,0.405504,3139.8,3139.6,0.001]
[1765806423581,3.18531326,3139.9,3139.6,0.001]
[1765806423890,3.59043997,3139.8,3139.6,0.001]
[1765806424088,3.18493597,3139.8,3139.6,0.001]
[1765806424295,3.82194364,3139.8,3139.6,0.001]
[1765806425367,0.405504,3139.8,3139.6,0.001]
[1765806427201,0.0004,3139.9,3139.6,0.001]
[1765806427788,0.405504,3139.8,3139.6,0.001]
[1765806430006,3.58986761,3140.0,3139.6,0.001]
[1765806431193,3.18465968,3140.1,3139.6,0.001]
[1765806432110,0.407504,3140.2,3139.6,0.001]
[1765806433004,0.002,3140.2,3139.6,0.03285119]
[1765806433205,0.002,3140.2,3139.6,0.001]
[1765806434393,0.002,3140.2,3139.6,0.58147529]
[1765806435693,0.002,3140.2,3139.7,0.505]
[1765806436113,0.002,3140.2,3139.8,3.18491623]
[1765806436683,0.002,3140.2,3139.8,6.36983246]
[1765806437713,0.002,3140.2,3139.8,3.18491623]
[1765806443052,0.002,3140.2,3139.6,0.001]
[1765806443405,0.405504,3140.1,3139.6,0.001]
[1765806443617,0.405504,3139.9,3139.6,0.001]
[1765806443945,0.505,3139.8,3139.6,0.001]
[1765806444154,0.405504,3139.7,3139.6,0.001]
[1765806445006,0.405504,3139.8,3139.6,0.001]
[1765806446145,3.18501767,3139.7,3139.6,0.001]
[1765806446447,4.31856566,3139.7,3139.6,0.001]
[1765806448110,4.82356566,3139.7,3139.6,0.001]
[1765806449740,4.31856566,3139.7,3139.6,0.001]
[1765806449933,4.82356566,3139.7,3139.6,0.001]
[1765806452544,4.31856566,3139.7,3139.6,0.001]
[1765806452720,4.82356566,3139.7,3139.6,0.001]
[1765806453212,4.82276566,3139.7,3139.6,0.001]
[1765806457148,4.31776566,3139.7,3139.6,0.001]
[1765806457343,4.82276566,3139.7,3139.6,0.001]
[1765806459339,0.12752967,3140.6,3139.6,0.001]
[1765806459340,6.3692239,3140.1,3139.6,0.001]
[1765806459844,0.405504,3140.0,3139.6,0.001]
[1765806460041,6.3692239,3140.1,3139.6,0.001]
[1765806460616,0.405504,3140.0,3139.6,0.001]
[1765806460814,0.67747279,3139.9,3139.6,0.001]
[1765806461153,0.405504,3140.0,3139.6,0.001]
[1765806462131,3.1848148,3139.9,3139.6,0.001]
[1765806462851,0.405504,3139.8,3139.6,0.001]
[1765806463649,0.910504,3139.8,3139.6,0.001]
[1765806464133,3.59052167,3139.7,3139.6,0.001]
[1765806464448,4.79758555,3139.7,3139.6,0.001]
[1765806465454,5.37806084,3139.7,3139.6,0.001]
[1765806467287,10.26775392,3139.7,3139.6,0.001]
[1765806472344,5.88306084,3139.7,3139.6,0.001]
[1765806472976,5.37806084,3139.7,3139.6,0.001]
[1765806473172,5.47755684,3139.7,3139.6,0.001]
[1765806473378,5.88306084,3139.7,3139.6,0.001]
[1765806473557,5.37806084,3139.7,3139.6,0.001]
[1765806473756,5.88306084,3139.7,3139.6,0.001]
[1765806474475,5.88506084,3139.7,3139.6,0.001]
[1765806475556,4.97455684,3139.7,3139.6,0.001]
[1765806475877,5.47955684,3139.7,3139.6,0.001]
[1765806476377,5.88506084,3139.7,3139.6,0.001]
[1765806476570,5.88426084,3139.7,3139.6,0.001]
[1765806477283,4.09672167,3139.7,3139.6,0.001]
[1765806480279,3.59172167,3139.7,3139.6,0.001]
[1765806481980,0.002,3139.7,3139.6,0.001]
[1765806482302,3.18701767,3139.7,3139.6,0.001]
[1765806482669,0.002,3139.7,3139.6,0.001]
[1765806482868,3.18701767,3139.7,3139.6,0.001]
[1765806484486,0.002,3139.7,3139.6,0.001]
[1765806485080,0.407504,3139.7,3139.6,0.001]
[1765806486576,3.59252167,3139.7,3139.6,0.001]
[1765806489096,0.407504,3139.7,3139.6,0.001]
[1765806489289,0.002,3139.7,3139.6,0.52878693]
[1765806489592,0.002,3139.7,3139.6,0.03285119]
[1765806489779,0.002,3139.7,3139.6,0.001]
[1765806491257,0.002,3139.7,3139.6,3.76659441]
[1765806493094,0.002,3139.7,3139.6,3.7984456]
[1765806493492,0.002,3139.7,3139.6,3.76659441]
[1765806495784,0.405504,3140.9,3139.7,0.58047529]
[1765806497464,0.405504,3140.9,3139.9,0.58047529]
[1765806497665,0.405504,3140.8,3140.0,0.505]
[1765806497883,0.002,3141.0,3140.2,0.58047529]
[1765806498208,3.59120406,3141.0,3140.2,0.58047529]
[1765806499904,3.59120406,3141.0,3140.3,3.18440913]
[1765806500402,0.406704,3141.0,3140.3,6.36881826]
[1765806500810,3.1849121,3141.0,3140.3,6.36881826]
[1765806501009,0.0012,3141.0,3140.5,4.38148826]
[1765806501213,0.0012,3141.0,3140.6,1.08547529]
[1765806501379,0.0012,3141.0,3140.9,4.96196355]
[1765806501803,0.0012,3141.0,3140.9,3.76427611]
[1765806504217,0.0012,3141.0,3140.9,0.58047529]
[1765806504505,0.0012,3141.0,3140.6,3.68904522]
[1765806504808,0.0012,3141.0,3140.6,0.505]
[1765806504977,0.0012,3141.0,3140.2,0.505]
[1765806505508,0.0012,3141.0,3140.3,3.18435414]
[1765806506208,0.0012,3141.0,3140.3,3.18440913]
[1765806506502,0.0012,3141.0,3140.2,3.68946493]
[1765806507807,0.0012,3141.0,3140.2,6.87397547]
[1765806508939,0.406704,3141.0,3140.2,6.87397547]
[1765806509631,0.0012,3141.0,3140.5,0.58047529]
[1765806509840,0.0012,3141.0,3140.6,0.03184104]
[1765806510000,0.0012,3141.0,3140.5,0.58047529]
[1765806510916,0.0012,3141.0,3140.7,0.58047529]
[1765806511133,0.0012,3141.0,3140.7,1.08547529]
[1765806511330,0.0012,3141.0,3140.7,0.505]
[1765806511722,0.0012,3141.0,3140.3,3.68933845]
[1765806512700,0.0012,3141.0,3140.4,3.18429247]
[1765806513233,0.0012,3141.0,3140.3,3.68936627]
[1765806514735,0.0012,3141.0,3140.4,0.58047529]
[1765806514944,0.0012,3141.0,3140.4,4.96103006]
[1765806515103,0.0012,3141.0,3140.5,6.36841266]
[1765806516144,0.0012,3141.0,3140.7,4.38055477]
[1765806517229,0.0012,3141.0,3140.8,3.18390219]
[1765806518123,0.0012,3141.0,3140.8,6.36780438]
[1765806519434,0.0012,3141.0,3140.7,8.06951661]
[1765806519640,0.0012,3141.0,3140.7,0.505]
[1765806520638,0.0012,3141.0,3140.7,3.68899357]
[1765806523540,0.0004,3141.0,3140.7,3.68899357]
[1765806523838,0.0004,3141.0,3140.7,0.505]
[1765806524056,0.31918968,3141.0,3140.3,0.001]
[1765806524223,0.31918968,3141.0,3140.4,3.18424937]
[1765806525445,0.31918968,3141.0,3140.5,3.18420251]
[1765806525621,0.31918968,3141.0,3140.6,3.18410443]
[1765806525816,0.31918968,3141.0,3140.4,6.36860812]
[1765806526021,0.0004,3141.0,3140.4,6.36860812]
[1765806526642,0.0004,3141.0,3140.6,0.001]
[1765806526817,0.0004,3141.0,3140.7,0.505]
[1765806527932,0.0004,3141.0,3140.8,3.18390219]
[1765806528512,0.0004,3141.0,3140.8,6.36780438]
[1765806529544,0.0004,3141.0,3140.8,3.18390219]
[1765806530413,0.0004,3141.0,3140.8,6.36780438]
[1765806533123,0.0004,3141.0,3140.8,3.18390219]
[1765806534340,0.0004,3141.0,3140.9,0.58047529]
[1765806534872,0.0004,3141.0,3140.9,3.76427611]
[1765806535447,0.0004,3141.0,3140.9,8.14483088]
[1765806536812,0.0004,3141.0,3140.9,3.76427611]
[1765806537444,0.0004,3141.0,3140.8,0.58147529]
[1765806537656,0.0004,3141.0,3140.8,3.18485851]
[1765806538527,0.0004,3141.0,3140.9,3.18380082]
[1765806538947,0.0004,3141.0,3140.8,3.18490219]
[1765806539447,0.0004,3141.0,3140.8,6.36880438]
[1765806539653,0.0004,3141.0,3140.8,3.18490219]
[1765806539957,0.0004,3141.0,3140.8,0.001]
[1765806542422,0.0004,3141.0,3140.8,4.38155477]
[1765806543460,0.0004,3141.0,3140.9,3.18380082]
[1765806544148,0.0004,3141.0,3140.9,3.76427611]
[1765806544556,0.0004,3141.0,3140.8,0.001]
[1765806546447,0.0016,3141.1,3140.8,0.001]
[1765806549450,0.47896588,3141.0,3140.8,0.001]
[1765806550150,0.405504,3141.0,3140.8,0.001]
[1765806552184,3.58929555,3141.0,3140.8,0.001]
[1765806552882,3.59073184,3141.1,3140.8,0.001]
[1765806556782,0.407104,3141.1,3140.8,0.001]
[1765806557079,0.0016,3141.1,3140.8,0.001]
[1765806557957,3.18522724,3141.1,3140.8,0.001]
[1765806558152,0.31872272,3141.0,3140.8,0.001]
[1765806558959,3.18380082,3140.9,3140.8,0.001]
[1765806569203,3.58930482,3140.9,3140.8,0.001]
[1765806569706,3.58850482,3140.9,3140.8,0.001]
[1765806578276,3.18300082,3140.9,3140.8,0.001]
[1765806578480,4.0019851,3140.9,3140.8,0.001]
[1765806583607,4.5059851,3140.9,3140.8,0.001]
[1765806584136,4.63347818,3140.9,3140.8,0.001]
[1765806587336,4.2199979,3140.9,3140.8,0.001]
[1765806587636,0.12749308,3140.9,3140.8,0.001]
[1765806587947,3.18374482,3141.0,3140.8,0.001]
[1765806588638,0.405504,3141.0,3140.8,0.001]
[1765806588823,0.0016,3141.1,3140.8,0.001]
[1765806591913,0.002,3140.9,3140.8,0.001]
[1765806593013,0.0012,3140.9,3140.8,0.001]
[1765806605852,0.59355513,3140.9,3140.8,0.001]
[1765806606056,0.72105024,3140.9,3140.8,0.001]
[1765806606232,3.90485106,3140.9,3140.8,0.001]
[1765806606435,7.83932635,3140.9,3140.8,0.001]
[1765806607731,4.86356751,3140.9,3140.8,0.001]